bitfinex-derivatives/quotes_BNBF0:USTF0_20251219
["timestamp","ask_amount","ask_price","bid_price","bid_amount"]
[1766156281749,0.20502186,849.22,848.29,0.87084633]
[1766156281954,0.20502186,849.22,848.3,0.87084633]
[1766156282351,0.20502186,849.22,848.29,0.87084633]
[1766156283555,0.20502186,849.22,848.28,0.87084633]
[1766156284454,0.20502186,849.22,848.27,0.87084633]
[1766156286451,0.20502186,849.22,848.26,0.87084633]
[1766156288357,0.20502186,849.22,848.25,0.87084633]
[1766156291257,0.20502186,849.22,848.24,0.87084633]
[1766156293757,0.20502186,849.22,848.28,0.87084633]
[1766156294454,0.20502186,849.22,848.27,0.87084633]
[1766156294754,0.20502186,849.22,848.41,0.87084633]
[1766156295359,0.20502186,849.22,848.4,0.87084633]
[1766156296361,0.20502186,849.22,847.55,0.01283799]
[1766156296362,0.20502186,849.22,848.39,0.87084633]
[1766156297160,0.20502186,849.22,848.38,0.87084633]
[1766156298362,0.20502186,849.22,848.37,0.87084633]
[1766156299064,1.75540785,849.87,848.39,0.87084633]
[1766156299264,1.75540785,849.88,848.4,0.87084633]
[1766156299466,0.20492045,849.52,848.5,0.87084633]
[1766156299961,0.20492045,849.52,848.49,0.87084633]
[1766156300161,0.20492045,849.52,848.47,0.87084633]
[1766156300460,0.20492045,849.52,848.39,0.87084633]
[1766156301362,0.20492045,849.52,848.38,0.87084633]
[1766156302367,0.20492045,849.52,848.37,0.87084633]
[1766156304066,0.20492045,849.52,848.36,0.87084633]
[1766156304965,0.20492045,849.52,848.44,0.87084633]
[1766156305569,0.20492045,849.52,848.43,0.87084633]
[1766156306369,0.20492045,849.52,848.42,0.87084633]
[1766156307271,0.20492045,849.52,848.41,0.87084633]
[1766156307665,0.20492045,849.52,848.4,0.87084633]
[1766156308267,0.20492045,849.52,848.39,0.87084633]
[1766156312273,0.20492045,849.52,848.4,0.87084633]
[1766156312475,0.20492045,849.52,848.39,0.87084633]
[1766156313172,0.20492045,849.52,848.38,0.87084633]
[1766156313374,0.20492045,849.52,848.33,0.87084633]
[1766156314975,0.20492045,849.52,848.18,1.17645153]
[1766156315181,0.20492045,849.52,848.34,0.87686536]
[1766156315380,0.20492045,849.52,848.33,0.87686536]
[1766156316282,0.20492045,849.52,848.25,0.87686536]
[1766156317579,0.20492045,849.52,848.23,0.87686536]
[1766156318280,0.20492045,849.52,848.21,0.87686536]
[1766156318483,0.20492045,849.52,847.9,1.7646773]
[1766156318484,0.20492045,849.52,848.17,0.87686536]
[1766156319978,0.20492045,849.52,848.18,0.87686536]
[1766156320478,0.20492045,849.52,848.03,1.17645153]
[1766156320479,0.20492045,849.52,848.19,0.87686536]
[1766156320882,0.20492045,849.52,848.18,0.87686536]
[1766156321083,0.20492045,849.52,848.19,0.87686536]
[1766156322083,0.20492045,849.52,848.18,0.87686536]
[1766156323080,0.20492045,849.52,848.19,0.87686536]
[1766156324884,0.20492045,849.52,848.16,0.87686536]
[1766156325784,0.20492045,849.52,848.17,0.87686536]
[1766156327086,0.20492045,849.52,848.18,0.87686536]
[1766156328186,0.20492045,849.52,848.19,0.87686536]
[1766156329088,0.20492045,849.52,848.2,0.87686536]
[1766156330188,0.20492045,849.52,848.21,0.87686536]
[1766156331090,0.20492045,849.52,848.22,0.87686536]
[1766156331385,0.20492045,849.52,848.23,0.87686536]
[1766156332485,0.20492045,849.52,848.29,0.87686536]
[1766156333185,0.20492045,849.52,848.3,0.87686536]
[1766156333788,0.20492045,849.52,848.15,1.17645153]
[1766156333789,0.20492045,849.52,848.34,0.87686536]
[1766156334389,0.20492045,849.52,848.35,0.87686536]
[1766156336192,0.20492045,849.52,848.36,0.87686536]
[1766156337192,0.20492045,849.52,848.37,0.87686536]
[1766156338193,0.20492045,849.52,848.38,0.87686536]
[1766156339192,0.20492045,849.52,848.39,0.87686536]
[1766156339394,0.20492045,849.52,848.4,0.87686536]
[1766156340693,0.20492045,849.52,848.41,0.87686536]
[1766156341093,0.20492045,849.52,848.44,0.87686536]
[1766156341493,0.20492045,849.52,848.5,0.87686536]
[1766156343296,0.20492045,849.52,848.51,0.87686536]
[1766156344498,0.20492045,849.52,848.5,0.87686536]
[1766156345200,0.20492045,849.52,848.51,0.87686536]
[1766156348999,0.20492045,849.52,848.39,0.87686536]
[1766156350399,0.20492045,849.52,848.4,0.87686536]
[1766156352299,0.20492045,849.52,848.41,0.87686536]
[1766156358602,0.20492045,849.52,848.5,0.87686536]
[1766156360298,0.20492045,849.52,848.51,0.87686536]
[1766156360602,0.20492045,849.52,848.5,0.87686536]
[1766156361099,0.20492045,849.52,848.51,0.87686536]
[1766156363401,0.20492045,849.52,848.5,0.87686536]
[1766156364205,0.20492045,849.52,848.51,0.87686536]
[1766156366404,0.20492045,849.52,848.54,0.87686536]
[1766156366605,0.20492045,849.52,848.62,0.87686536]
[1766156370811,0.20492045,849.52,848.58,0.87686536]
[1766156371217,0.20492045,849.52,848.56,0.87686536]
[1766156371418,0.20492045,849.52,848.53,0.87686536]
[1766156372311,0.20492045,849.52,848.54,0.87686536]
[1766156373415,0.20492045,849.52,848.52,0.87686536]
[1766156385325,0.20492045,849.52,848.53,0.87686536]
[1766156387427,0.20492045,849.52,848.54,0.87686536]
[1766156389333,0.20492045,849.52,848.55,0.87686536]
[1766156390530,0.20492045,849.52,848.52,0.87686536]
[1766156390737,0.20492045,849.52,848.5,0.87686536]
[1766156391339,0.20492045,849.52,848.47,0.87686536]
[1766156392438,0.20492045,849.52,848.48,0.87686536]
[1766156393943,1.75540785,849.2,848.03,0.87686536]
[1766156394143,1.75540785,849.24,847.99,0.87686536]
[1766156394444,1.75540785,849.29,848.03,0.87686536]
[1766156395141,1.75540785,849.32,848.01,0.87686536]
[1766156395341,1.75540785,849.35,848.03,0.87686536]
[1766156395540,1.75540785,849.42,848.11,0.87686536]
[1766156396245,1.75540785,849.44,848.1,0.87686536]
[1766156397246,1.75540785,849.45,848.09,0.87686536]
[1766156398246,1.75540785,849.46,848.08,0.87686536]
[1766156398442,1.75540785,849.46,848.07,0.87686536]
[1766156399246,1.75540785,849.44,848.03,0.87686536]
[1766156400344,1.75540785,849.32,847.91,0.87686536]
[1766156400743,1.75540785,849.38,847.97,0.87686536]
[1766156401147,1.75540785,849.39,847.98,0.87686536]
[1766156401343,1.75540785,849.4,847.96,0.87686536]
[1766156401748,1.75540785,849.4,848.0,0.87686536]
[1766156401945,0.20492045,849.52,848.24,0.87686536]
[1766156402148,0.20492045,849.52,848.29,0.87686536]
[1766156402352,0.20492045,849.52,848.25,0.87686536]
[1766156402750,0.20492045,849.52,848.14,0.87686536]
[1766156403045,0.20492045,849.52,847.44,0.01447452]
[1766156403046,1.75540785,849.48,848.04,0.87686536]
[1766156403252,1.75540785,849.49,848.03,0.87686536]
[1766156404249,1.75540785,849.49,848.02,0.87686536]
[1766156404446,1.75540785,849.39,847.92,0.87686536]
[1766156405350,1.75540785,849.4,847.91,0.87686536]
[1766156405553,1.75540785,849.41,847.91,0.87686536]
[1766156405948,1.75540785,849.42,847.92,0.87686536]
[1766156406148,1.75540785,849.43,847.91,0.87686536]
[1766156406551,1.75540785,849.46,847.94,0.87686536]
[1766156406847,1.75540785,849.48,847.96,0.87686536]
[1766156407047,0.20492045,849.52,848.15,0.87686536]
[1766156407249,0.20492045,849.52,848.18,0.87686536]
[1766156407452,0.20492045,849.52,848.19,0.87686536]
[1766156411154,0.20492045,849.52,848.18,0.87686536]
[1766156411454,0.20492045,849.52,848.19,0.87686536]
[1766156411950,0.20492045,849.52,848.25,0.87686536]
[1766156413652,0.20492045,849.52,848.24,0.87686536]
[1766156414552,0.20492045,849.52,848.25,0.87686536]
[1766156415156,0.20492045,849.52,848.24,0.87686536]
[1766156415358,0.20492045,849.52,848.25,0.87686536]
[1766156415755,0.20492045,849.52,848.24,0.87686536]
[1766156417053,0.20492045,849.52,848.19,0.87686536]
[1766156417258,0.20492045,849.52,848.14,0.87686536]
[1766156417459,0.20492045,849.52,848.11,0.87686536]
[1766156418059,0.20492045,849.52,848.02,0.87686536]
[1766156419261,0.20492045,849.52,848.06,0.87686536]
[1766156419857,0.20492045,849.52,848.15,0.87686536]
[1766156420863,0.20492045,849.52,848.14,0.87686536]
[1766156421360,0.20492045,849.52,848.15,0.87686536]
[1766156425568,0.20492045,849.52,848.16,0.87686536]
[1766156425870,0.20492045,849.52,847.25,2.94112884]
[1766156425871,0.20492045,849.52,848.24,0.87686536]
[1766156426063,0.20492045,849.52,848.28,0.87686536]
[1766156427268,0.20492045,849.52,848.29,0.87686536]
[1766156428567,0.20492045,849.52,848.3,0.87686536]
[1766156429166,0.20492045,849.52,848.31,0.87686536]
[1766156431073,0.20492045,849.52,848.32,0.87686536]
[1766156431769,0.20492045,849.52,848.31,0.87686536]
[1766156431970,0.20492045,849.52,848.32,0.87686536]
[1766156434673,0.20492045,849.52,848.29,0.87686536]
[1766156434878,0.20492045,849.52,848.22,0.87686536]
[1766156435079,0.20492045,849.52,848.13,0.87686536]
[1766156435777,0.20492045,849.52,848.11,0.87686536]
[1766156435974,0.20492045,849.52,848.08,0.87686536]
[1766156436175,0.20492045,849.52,847.93,1.17645153]
[1766156436477,0.20492045,849.52,848.08,0.87971107]
[1766156437176,0.20492045,849.52,848.09,0.87971107]
[1766156437376,0.20492045,849.52,848.08,0.87971107]
[1766156439279,0.20492045,849.52,848.09,0.87971107]
[1766156439884,0.20492045,849.52,848.12,0.87971107]
[1766156441087,0.20492045,849.52,848.09,0.87971107]
[1766156441287,1.75540785,849.5,848.06,0.87971107]
[1766156441489,1.75540785,849.5,847.2,2.94112884]
[1766156441490,1.75540785,849.48,848.04,0.87971107]
[1766156441690,1.75540785,849.46,848.02,0.87971107]
[1766156443092,1.75540785,849.42,847.98,0.87971107]
[1766156444093,1.75540785,849.38,847.93,0.87971107]
[1766156444393,1.75540785,849.28,847.83,0.87971107]
[1766156445194,1.75540785,849.29,847.82,0.87971107]
[1766156445592,1.75540785,849.29,847.83,0.87971107]
[1766156445994,1.75540785,849.29,847.82,0.87971107]
[1766156446894,1.75540785,849.23,847.76,0.87971107]
[1766156447094,1.75540785,849.24,847.75,0.87971107]
[1766156448197,1.75540785,849.24,847.74,0.87971107]
[1766156448893,1.75540785,849.24,847.75,0.87971107]
[1766156449097,1.75540785,849.25,847.74,0.87971107]
[1766156450895,1.75540785,849.25,847.73,0.87971107]
[1766156451094,1.75540785,849.18,847.67,0.87971107]
[1766156451299,1.75540785,849.2,847.67,0.87971107]
[1766156451894,1.75540785,849.14,847.61,0.87971107]
[1766156452399,1.75540785,849.15,847.6,0.87971107]
[1766156453304,1.75540785,849.15,847.44,1.17645153]
[1766156453305,1.75540785,849.16,847.59,0.87971107]
[1766156454400,1.16874456,849.02,847.57,0.87971107]
[1766156455301,1.16874456,849.03,847.56,0.87971107]
[1766156455597,1.16874456,849.01,847.54,0.87971107]
[1766156456196,1.16874456,849.02,847.53,0.87971107]
[1766156457297,1.16874456,849.03,847.52,0.87971107]
[1766156458102,1.16874456,849.04,847.51,0.87971107]
[1766156459306,1.16874456,849.05,847.5,0.87971107]
[1766156460406,1.16874456,849.1,847.55,0.87971107]
[1766156460601,1.75540785,849.28,847.58,0.87971107]
[1766156461001,1.75540785,849.29,847.58,0.87971107]
[1766156462407,1.75540785,849.3,847.58,0.87971107]
[1766156462705,1.75540785,849.36,847.64,0.87971107]
[1766156463303,1.75540785,849.37,847.64,0.87971107]
[1766156463500,1.75540785,849.41,847.69,0.87971107]
[1766156464204,1.75540785,849.42,847.68,0.87971107]
[1766156464400,1.75540785,849.41,847.68,0.87971107]
[1766156465306,1.75540785,849.42,847.68,0.87971107]
[1766156466506,1.75540785,849.43,847.69,0.87971107]
[1766156466707,1.75540785,849.46,847.72,0.87971107]
[1766156467903,1.9603283,849.52,847.78,0.87971107]
[1766156469209,1.75540785,849.51,847.78,0.87971107]
[1766156470703,1.75540785,849.48,847.75,0.87971107]
[1766156471209,1.75540785,849.45,847.72,0.87971107]
[1766156471410,1.75540785,849.42,847.69,0.87971107]
[1766156471610,1.75540785,849.4,847.67,0.87971107]
[1766156471811,1.75540785,849.38,847.65,0.87971107]
[1766156472710,1.75540785,849.35,847.63,0.87971107]
[1766156474111,1.75540785,849.48,847.76,0.87971107]
[1766156474312,1.75540785,849.51,847.8,0.87971107]
[1766156475412,1.75540785,849.5,847.8,0.87971107]
[1766156476312,1.75540785,849.5,847.81,0.87971107]
[1766156477411,1.75540785,849.49,847.81,0.87971107]
[1766156477910,1.75540785,849.38,847.7,0.87971107]
[1766156478214,1.75540785,849.33,847.64,0.87971107]
[1766156478414,1.75540785,849.32,847.64,0.87971107]
[1766156478609,1.75540785,849.32,847.63,0.87971107]
[1766156479310,1.75540785,849.3,847.61,0.87971107]
[1766156480111,1.75540785,849.31,847.61,0.87971107]
[1766156480412,1.75540785,849.31,847.62,0.87971107]
[1766156480714,1.75540785,849.31,847.63,0.87971107]
[1766156480916,1.75540785,849.32,847.63,0.87971107]
[1766156481517,1.75540785,849.4,847.72,0.87971107]
[1766156483316,1.75540785,849.4,847.73,0.87971107]
[1766156484315,1.75540785,849.39,847.73,0.87971107]
[1766156484616,1.75540785,849.31,847.65,0.87971107]
[1766156484821,1.16759972,849.09,847.57,0.87971107]
[1766156485117,1.16759972,849.07,847.55,0.87971107]
[1766156485318,1.16759972,849.06,847.55,0.87971107]
[1766156485617,1.16759972,849.01,847.49,0.87971107]
[1766156485818,1.16759972,848.98,847.46,0.87971107]
[1766156486217,1.16759972,848.97,847.46,0.87971107]
[1766156486721,1.16759972,849.1,847.59,0.87971107]
[1766156487219,1.16759972,849.09,847.6,0.87971107]
[1766156487618,1.16759972,849.2,847.72,0.87971107]
[1766156488323,1.16759972,849.19,847.73,0.87971107]
[1766156489222,1.16759972,849.18,847.74,0.87971107]
[1766156489422,1.16759972,849.28,847.84,0.87971107]
[1766156490119,1.16759972,849.29,847.87,0.87971107]
[1766156490324,1.16759972,849.29,847.88,0.87971107]
[1766156490523,1.16759972,849.29,847.72,1.17645153]
[1766156490724,1.16759972,849.29,847.88,0.87880503]
[1766156491225,1.16759972,849.27,847.89,0.87880503]
[1766156491921,1.16759972,849.27,847.04,0.01275203]
[1766156491922,1.16759972,849.31,847.93,0.87880503]
[1766156492320,1.16759972,849.31,847.78,1.17645153]
[1766156492321,1.16759972,849.3,847.95,0.87880503]
[1766156493121,1.16759972,849.28,847.96,0.87880503]
[1766156494225,1.16759972,849.28,847.81,1.17645153]
[1766156494226,1.16759972,849.26,847.98,0.87880503]
[1766156495226,1.16759972,849.25,847.99,0.87880503]
[1766156497328,1.16759972,849.24,847.99,0.87880503]
[1766156498223,1.16759972,849.24,848.0,0.87880503]
[1766156498630,1.16759972,849.13,847.89,0.87880503]
[1766156499131,1.16759972,849.14,847.89,0.87880503]
[1766156499429,1.16759972,849.13,847.9,0.87880503]
[1766156499728,0.20507381,848.83,847.9,0.87880503]
[1766156500130,0.20507381,848.83,847.91,0.87880503]
[1766156501324,0.20507381,848.83,847.97,0.87880503]
[1766156502326,0.20507381,848.83,847.95,0.87880503]
[1766156502930,0.20507381,848.83,847.94,0.87880503]
[1766156503130,0.20507381,848.83,847.92,0.87880503]
[1766156503333,0.20507381,848.83,847.84,0.87880503]
[1766156506134,0.20507381,848.83,847.83,0.87880503]
[1766156506335,0.20507381,848.83,847.84,0.87880503]
[1766156506837,0.20507381,848.83,847.87,0.87880503]
[1766156507331,0.20507381,848.83,847.88,0.87880503]
[1766156508131,0.20507381,848.83,847.87,0.87880503]
[1766156508336,0.20507381,848.83,847.96,0.87880503]
[1766156508534,0.20507381,848.83,848.03,0.87880503]
[1766156509232,0.20507381,848.83,848.02,0.88113887]
[1766156513138,0.20507381,848.83,847.98,0.88113887]
[1766156513337,0.20507381,848.83,847.94,0.88113887]
[1766156513531,0.20507381,848.83,847.92,0.88113887]
[1766156513735,0.20507381,848.83,847.89,0.88113887]
[1766156513933,0.20507381,848.83,847.88,0.88113887]
[1766156514334,0.20507381,848.83,847.89,0.88113887]
[1766156516137,0.20507381,848.83,847.9,0.88113887]
[1766156517234,0.20507381,848.83,847.91,0.88113887]
[1766156517437,0.20507381,848.83,848.01,0.88113887]
[1766156518339,0.20507381,848.83,848.02,0.88113887]
[1766156519134,0.20507381,848.83,848.03,0.88113887]
[1766156519336,1.16759972,849.16,848.03,0.88113887]
[1766156519835,0.20505568,848.87,848.03,0.88113887]
[1766156520939,0.20505568,848.87,848.02,0.88113887]
[1766156521140,0.20505568,848.87,848.01,0.88113887]
[1766156522043,0.20505568,848.87,848.02,0.88113887]
[1766156523044,0.20505568,848.87,848.0,0.88113887]
[1766156524939,0.20505568,848.87,847.15,0.01526709]
[1766156524940,0.20505568,848.87,847.97,0.88113887]
[1766156525144,0.20505568,848.87,847.95,0.88113887]
[1766156527947,0.20505568,848.87,847.92,0.88113887]
[1766156528152,0.20505568,848.87,847.89,0.88113887]
[1766156528541,0.20505568,848.87,847.88,0.88113887]
[1766156528746,1.16759972,848.76,847.63,0.88113887]
[1766156529143,1.16759972,848.77,847.62,0.88113887]
[1766156529347,0.20505568,848.87,846.7,2.94112884]
[1766156529348,1.16759972,848.75,847.59,0.88113887]
[1766156529643,1.16759972,848.59,847.44,0.88113887]
[1766156529943,1.16759972,848.59,847.43,0.88113887]
[1766156530147,1.16759972,848.61,847.41,0.88113887]
[1766156530345,1.16759972,848.49,847.28,0.88113887]
[1766156530544,1.16759972,848.58,847.37,0.88113887]
[1766156530846,1.16759972,848.61,847.41,0.88113887]
[1766156531042,1.16759972,848.64,847.39,0.88113887]
[1766156531348,1.16759972,848.77,847.52,0.88113887]
[1766156532247,1.16759972,848.77,847.37,1.17645153]
[1766156532248,1.16759972,848.78,847.51,0.88113887]
[1766156533150,0.20505568,848.87,846.6,2.94112884]
[1766156533151,0.20505568,848.87,847.64,0.88113887]
[1766156533449,0.20505568,848.87,847.69,0.88113887]
[1766156534245,0.20505568,848.87,847.68,0.88113887]
[1766156535248,0.20505568,848.87,847.64,0.88113887]
[1766156537453,0.20505568,848.87,847.61,0.88113887]
[1766156537652,0.20505568,848.87,847.59,0.88113887]
[1766156538055,0.20505568,848.87,847.58,0.88113887]
[1766156539650,0.20505568,848.87,846.36,4.11758038]
[1766156539651,1.3726554,848.87,847.57,0.88113887]
[1766156540258,1.3726554,848.87,847.56,0.88113887]
[1766156541057,0.20505568,848.87,847.56,0.88113887]
[1766156543159,0.20505568,848.87,847.55,0.88113887]
[1766156547061,0.20505568,848.87,847.62,0.88113887]
[1766156547257,0.20505568,848.87,847.69,0.87973748]
[1766156547658,0.20505568,848.87,847.74,0.87973748]
[1766156548060,0.20505568,848.87,847.75,0.87973748]
[1766156548260,0.20505568,848.87,847.74,0.87973748]
[1766156548662,0.20505568,848.87,846.89,0.01483829]
[1766156548663,0.20505568,848.87,847.78,0.87973748]
[1766156548962,0.20505568,848.87,847.79,0.87973748]
[1766156550159,0.20505568,848.87,847.8,0.87973748]
[1766156550460,0.20505568,848.87,847.64,1.17645153]
[1766156550461,0.20505568,848.87,847.79,0.87973748]
[1766156551557,0.20505568,848.87,847.77,0.87973748]
[1766156552158,0.20505568,848.87,847.76,0.87973748]
[1766156553163,0.20505568,848.87,847.77,0.87973748]
[1766156556261,0.20505568,848.87,847.78,0.87973748]
[1766156557068,0.20505568,848.87,847.71,0.87973748]
[1766156557568,0.20505568,848.87,847.69,0.87973748]
[1766156557769,0.20505568,848.87,847.64,0.87973748]
[1766156558368,0.20505568,848.87,847.61,0.87973748]
[1766156566078,0.20505568,848.87,847.6,0.87973748]
[1766156568977,1.3726554,848.87,847.57,0.87973748]
[1766156569183,1.16759972,848.85,847.55,0.87973748]
[1766156569478,1.16759972,848.81,847.51,0.87973748]
[1766156570282,1.16759972,848.81,847.52,0.87973748]
[1766156572282,1.16759972,848.8,847.53,0.87973748]
[1766156573078,1.16759972,848.8,847.52,0.87973748]
[1766156573280,1.16759972,848.8,847.53,0.87973748]
[1766156577886,1.16759972,848.84,847.57,0.87973748]
[1766156578086,0.20505568,848.87,847.64,0.87973748]
[1766156578381,0.20505568,848.87,847.72,0.87973748]
[1766156579384,0.20505568,848.87,847.73,0.87973748]
[1766156579884,0.20505568,848.87,847.66,0.87973748]
[1766156580581,0.20505568,848.87,847.67,0.87973748]
[1766156580986,0.20505568,848.87,847.66,0.87973748]
[1766156581284,0.20505568,848.87,847.67,0.87973748]
[1766156582081,0.20505568,848.87,847.76,0.87973748]
[1766156582285,0.20505568,848.87,847.81,0.87973748]
[1766156582586,0.20505568,848.87,847.88,0.87973748]
[1766156583185,0.20505568,848.87,847.89,0.87973748]
[1766156583487,0.20505568,848.87,847.94,0.87973748]
[1766156585088,0.20505568,848.87,847.95,0.87973748]
[1766156585288,0.20505568,848.87,847.94,0.87973748]
[1766156588287,0.20505568,848.87,847.93,0.87973748]
[1766156593001,0.20505568,848.87,847.91,0.87973748]
[1766156593204,0.20505568,848.87,847.87,0.87973748]
[1766156596205,0.20505568,848.87,847.82,0.87973748]
[1766156596405,0.20505568,848.87,847.81,0.87973748]
[1766156596605,0.20505568,848.87,847.82,0.87973748]
[1766156597201,0.20505568,848.87,847.81,0.87973748]
[1766156597600,0.20505568,848.87,847.82,0.87973748]
[1766156598406,0.20505568,848.87,847.92,0.87973748]
[1766156600109,0.20505568,848.87,847.91,0.87973748]
[1766156600709,0.20505568,848.87,847.92,0.87973748]
[1766156600911,0.20505568,848.87,847.94,0.87973748]
[1766156602313,0.20505568,848.87,847.93,0.87973748]
[1766156602607,1.16759972,849.25,847.97,0.87973748]
[1766156602808,1.16759972,849.29,848.01,0.87973748]
[1766156603011,0.20504964,848.97,848.01,0.87973748]
[1766156603409,0.20504964,848.97,848.08,0.87973748]
[1766156604215,0.20504964,848.97,848.07,0.87973748]
[1766156604908,0.20504964,848.97,848.05,0.87973748]
[1766156605411,0.20504964,848.97,848.04,0.87973748]
[1766156605610,0.20504964,848.97,848.05,0.87973748]
[1766156607213,0.20504964,848.97,848.06,0.87973748]
[1766156608216,0.20504964,848.97,848.05,0.87973748]
[1766156609112,0.20504964,848.97,848.04,0.87973748]
[1766156609617,0.20504964,848.97,848.06,0.87973748]
[1766156609912,0.20504964,848.97,848.09,0.87973748]
[1766156610316,0.20504964,848.97,848.08,0.87973748]
[1766156610818,0.01189583,850.1,848.12,0.87973748]
[1766156610819,1.16759972,849.5,848.12,0.87973748]
[1766156611019,0.2049977,849.17,848.19,0.87973748]
[1766156611318,0.2049977,849.17,848.21,0.87973748]
[1766156612120,0.2049977,849.17,848.2,0.87973748]
[1766156613119,0.2049977,849.17,848.18,0.87973748]
[1766156614323,0.2049977,849.17,848.17,0.87973748]
[1766156615221,0.2049977,849.17,848.16,0.87973748]
[1766156616225,0.2049977,849.17,848.14,0.87973748]
[1766156617424,0.2049977,849.17,848.13,0.87973748]
[1766156618426,0.2049977,849.17,848.12,0.87973748]
[1766156618625,0.2049977,849.17,848.13,0.87973748]
[1766156619725,0.2049977,849.17,848.15,0.87973748]
[1766156620328,0.2049977,849.17,848.14,0.87973748]
[1766156621327,0.2049977,849.17,848.13,0.87973748]
[1766156622130,0.2049977,849.17,848.09,0.87973748]
[1766156622430,0.2049977,849.17,848.07,0.87973748]
[1766156623030,0.2049977,849.17,847.97,0.87973748]
[1766156623332,0.2049977,849.17,847.84,0.87973748]
[1766156625131,0.2049977,849.17,847.85,0.87973748]
[1766156626231,0.2049977,849.17,847.86,0.87973748]
[1766156628029,0.2049977,849.17,847.85,0.87973748]
[1766156628433,0.2049977,849.17,847.86,0.87973748]
[1766156629432,0.2049977,849.17,847.86,0.87512278]
[1766156629729,0.2049977,849.17,847.82,0.87512278]
[1766156630132,0.2049977,849.17,847.83,0.87512278]
[1766156630530,0.2049977,849.17,847.77,0.87512278]
[1766156631335,1.16759972,849.13,847.62,0.87512278]
[1766156631537,1.16759972,849.12,847.58,0.87512278]
[1766156632233,1.16759972,849.12,847.59,0.87512278]
[1766156632534,1.16759972,849.13,847.6,0.87512278]
[1766156633132,1.16759972,849.12,847.61,0.87512278]
[1766156634233,1.16759972,849.11,847.62,0.87512278]
[1766156635033,1.16759972,849.1,847.63,0.87512278]
[1766156636139,1.16759972,849.09,847.64,0.87512278]
[1766156637336,1.16759972,849.09,847.65,0.87512278]
[1766156637840,1.16759972,849.08,847.64,0.87512278]
[1766156638136,1.16759972,849.07,847.65,0.87512278]
[1766156638340,1.16759972,849.07,847.63,0.87512278]
[1766156639337,1.16759972,849.07,847.48,1.17645153]
[1766156639338,1.16759972,849.07,847.64,0.87512278]
[1766156640642,1.16759972,849.06,847.63,0.87512278]
[1766156640842,1.16759972,849.07,847.63,0.87512278]
[1766156641146,1.16759972,849.07,847.64,0.87512278]
[1766156642045,1.16759972,849.09,847.66,0.87512278]
[1766156642345,1.16759972,849.16,847.73,0.87512278]
[1766156644344,1.16759972,849.08,847.65,0.87512278]
[1766156644549,1.16759972,849.07,847.64,0.87512278]
[1766156645145,1.16759972,849.07,847.63,0.87512278]
[1766156645350,1.16759972,849.05,847.61,0.87512278]
[1766156646249,1.16759972,849.0,847.56,0.87512278]
[1766156646446,1.16759972,848.84,847.39,0.87512278]
[1766156646650,0.2049977,849.17,847.36,0.87512278]
[1766156646651,1.16759972,848.81,847.36,0.87512278]
[1766156646852,1.16759972,848.71,847.26,0.87512278]
[1766156647451,1.16759972,848.73,847.24,0.87512278]
[1766156648247,1.16759972,848.73,847.09,1.17645153]
[1766156648248,1.16759972,848.73,847.18,0.87512278]
[1766156648846,1.16759972,848.73,847.19,0.87512278]
[1766156649154,1.16759972,848.73,847.18,0.87512278]
[1766156649353,1.16759972,848.75,847.16,0.87512278]
[1766156650453,1.16759972,848.8,847.19,0.87512278]
[1766156651150,1.16759972,848.81,847.18,0.87512278]
[1766156651353,1.16759972,848.82,847.17,0.87512278]
[1766156652351,1.16759972,848.83,847.15,0.87512278]
[1766156653453,1.16759972,848.84,847.13,0.87512278]
[1766156654256,1.16759972,848.85,847.12,0.87512278]
[1766156655252,1.16759972,848.86,847.11,0.87512278]
[1766156656255,1.16759972,848.87,847.1,0.87512278]
[1766156656756,1.16759972,848.88,847.11,0.87512278]
[1766156656958,1.16759972,849.0,847.22,0.87512278]
[1766156658154,1.16759972,849.01,847.21,0.87512278]
[1766156659252,1.16759972,849.01,847.2,0.87512278]
[1766156659955,1.16759972,849.02,847.2,0.87512278]
[1766156661361,1.16759972,849.02,847.19,0.87512278]
[1766156662153,1.16759972,848.95,847.11,0.87512278]
[1766156662355,1.16759972,848.9,847.05,0.87512278]
[1766156662860,1.16759972,848.88,847.03,0.87512278]
[1766156663059,1.16759972,848.86,847.01,0.87512278]
[1766156663362,1.16759972,848.87,847.0,0.87512278]
[1766156663860,1.16759972,848.85,846.98,0.87512278]
[1766156664454,1.16759972,848.85,846.97,0.87512278]
[1766156664956,1.16759972,848.86,846.97,0.87512278]
[1766156666560,1.16759972,848.87,846.97,0.87512278]
[1766156667160,1.16759972,848.87,846.96,0.87512278]
[1766156667661,1.16759972,848.88,846.97,0.87512278]
[1766156667861,1.16759972,848.95,847.04,0.87512278]
[1766156668359,1.16759972,849.03,847.11,0.87512278]
[1766156668763,1.16759972,849.03,847.12,0.87512278]
[1766156671263,1.16759972,849.02,847.12,0.87512278]
[1766156671565,1.16759972,849.02,847.13,0.87512278]
[1766156671863,1.16759972,849.06,847.16,0.87512278]
[1766156672058,1.16759972,849.13,847.23,0.87512278]
[1766156672261,1.16759972,849.12,847.24,0.87512278]
[1766156673262,1.16759972,849.11,847.25,0.87512278]
[1766156673465,1.16759972,849.11,847.26,0.87512278]
[1766156674160,1.16759972,849.1,847.26,0.87512278]
[1766156674459,1.16759972,849.1,847.27,0.87512278]
[1766156674862,1.16759972,849.14,847.31,0.87512278]
[1766156675259,1.16759972,849.13,847.32,0.87512278]